bitfinex-derivatives/quotes_BTCF0:USTF0_20240820
["timestamp","ask_amount","ask_price","bid_price","bid_amount"]
[1724171446394,0.217721,59052.0,59051.0,0.001]
[1724171446395,1.125761,59052.0,59051.0,0.001]
[1724171446700,0.067723,59051.0,59050.0,0.067723]
[1724171446895,0.576523,59051.0,59050.0,0.067723]
[1724171447686,0.15,59051.0,59050.0,0.067723]
[1724171447890,0.5108,59051.0,59050.0,0.067723]
[1724171448099,0.15,59051.0,59050.0,0.067723]
[1724171448294,0.15,59051.0,59043.0,0.067731]
[1724171448295,0.342641,59051.0,59043.0,0.067731]
[1724171448597,0.19264298,59050.0,59049.0,0.067725]
[1724171448798,0.19164298,59050.0,59049.0,0.04442103]
[1724171449389,0.35064298,59050.0,59049.0,3.81442103]
[1724171449796,0.35063596,59050.0,59049.0,3.81442103]
[1724171449990,0.35063596,59050.0,59049.0,3.81542103]
[1724171450187,0.27694527,59050.0,59049.0,0.13645]
[1724171450487,0.18963596,59050.0,59049.0,1.112215]
[1724171450897,0.19363596,59050.0,59049.0,1.113215]
[1724171451298,0.19363596,59050.0,59049.0,4.883215]
[1724171451696,0.18963596,59050.0,59049.0,4.882215]
[1724171451904,0.19363596,59050.0,59049.0,4.883215]
[1724171452695,0.19363596,59050.0,59049.0,4.882215]
[1724171453100,0.21943774,59066.0,59065.0,0.067706]
[1724171453288,0.06069036,59066.0,59065.0,0.428506]
[1724171453599,0.21943774,59067.0,59066.0,0.067705]
[1724171453794,0.01037484,59070.0,59069.0,0.067702]
[1724171453992,0.7122,59074.0,59058.0,0.3608]
[1724171454191,0.3608,59068.0,59067.0,0.067704]
[1724171454399,0.3608,59068.0,59063.0,0.3608]
[1724171454400,0.36359426,59068.0,59065.0,0.001]
[1724171454592,0.36359426,59068.0,59066.0,0.067705]
[1724171454593,0.11699426,59067.0,59066.0,0.067705]
[1724171454798,0.1142,59067.0,59066.0,0.067705]
[1724171454997,0.11699427,59067.0,59066.0,0.067705]
[1724171455501,0.067705,59066.0,59058.0,0.001]
[1724171455698,0.3608,59059.0,59058.0,0.136428]
[1724171455900,0.16691376,59059.0,59058.0,0.001]
[1724171456107,0.19222598,59067.0,59065.0,0.067705]
[1724171456397,0.07049948,59066.0,59058.0,0.001]
[1724171456602,0.10356676,59065.0,59058.0,0.001]
[1724171456791,0.00279448,59064.0,59058.0,0.001]
[1724171456996,0.00279448,59064.0,59063.0,0.067708]
[1724171457194,0.00279448,59064.0,59059.0,0.067713]
[1724171457195,0.12552198,59067.0,59066.0,0.067705]
[1724171457901,0.12452198,59067.0,59066.0,0.067705]
[1724171458298,0.19222598,59067.0,59066.0,0.067705]
[1724171458699,0.31322598,59067.0,59066.0,0.067705]
[1724171459105,0.31622598,59067.0,59066.0,0.069705]
[1724171459300,0.48622598,59067.0,59066.0,0.069705]
[1724171459509,0.31622598,59067.0,59066.0,0.069705]
[1724171460102,0.24852198,59067.0,59066.0,0.069705]
[1724171461209,0.24852198,59067.0,59066.0,3.839705]
[1724171461397,0.33915017,59067.0,59066.0,3.839705]
[1724171461798,0.003,59067.0,59066.0,4.347625]
[1724171462112,0.003,59067.0,59066.0,4.41533]
[1724171462705,0.003,59067.0,59066.0,3.839705]
[1724171462903,0.003,59067.0,59066.0,0.069705]
[1724171463104,0.070704,59067.0,59066.0,0.002]
[1724171463409,0.431504,59067.0,59066.0,3.772]
[1724171463611,0.067708,59063.0,59062.0,0.05042227]
[1724171463801,0.067711,59061.0,59060.0,0.05042227]
[1724171464107,0.428511,59061.0,59060.0,0.05042227]
[1724171464499,0.067711,59061.0,59060.0,0.067712]
[1724171464708,0.428511,59061.0,59060.0,0.067712]
[1724171464904,0.067711,59061.0,59060.0,0.067712]
[1724171465297,0.066711,59061.0,59060.0,0.067712]
[1724171465502,0.065711,59061.0,59060.0,0.067712]
[1724171466008,0.068711,59061.0,59060.0,3.838712]
[1724171466402,0.07905944,59061.0,59060.0,3.838712]
[1724171466603,0.01334844,59061.0,59060.0,3.838712]
[1724171466797,0.01534844,59061.0,59060.0,3.839712]
[1724171467909,0.13334844,59061.0,59060.0,3.839712]
[1724171468098,0.12,59061.0,59060.0,3.838712]
[1724171468301,0.121,59061.0,59060.0,3.838712]
[1724171468503,0.124,59061.0,59060.0,3.90713126]
[1724171469113,0.006,59061.0,59060.0,3.90713126]
[1724171469507,0.006,59061.0,59060.0,4.619624]
[1724171469726,0.006,59061.0,59060.0,4.268224]
[1724171470105,0.006,59061.0,59060.0,4.200512]
[1724171471304,0.070711,59061.0,59060.0,4.199512]
[1724171471501,0.073711,59061.0,59060.0,4.200512]
[1724171472211,0.2939076,59061.0,59060.0,4.200512]
[1724171472412,0.192911,59061.0,59060.0,3.839712]
[1724171473414,0.192911,59061.0,59060.0,3.772]
[1724171473613,1.406293,59061.0,59060.0,0.002]
[1724171473805,1.406293,59061.0,59056.0,0.00025401]
[1724171473806,0.067715,59057.0,59056.0,0.00025401]
[1724171474114,0.64623,59057.0,59056.0,3.77025401]
[1724171475415,0.64823,59057.0,59056.0,3.77025401]
[1724171475611,1.55623,59057.0,59056.0,0.00025401]
[1724171476212,1.55923,59057.0,59056.0,0.00025401]
[1724171476809,1.55923,59057.0,59056.0,0.00125401]
[1724171477414,1.56964862,59057.0,59056.0,0.00125401]
[1724171478207,1.56664862,59057.0,59056.0,0.00125401]
[1724171478413,0.66364862,59057.0,59056.0,0.00125401]
[1724171478621,0.51364862,59057.0,59056.0,0.00125401]
[1724171478918,0.44593362,59057.0,59056.0,0.00125401]
[1724171479107,0.01841862,59057.0,59056.0,0.11937181]
[1724171479413,0.008,59057.0,59056.0,0.06897001]
[1724171479617,0.008,59057.0,59056.0,0.13668601]
[1724171480016,0.008,59057.0,59056.0,0.22123851]
[1724171480225,0.3608,59063.0,59062.0,0.06771]
[1724171480421,0.3608,59063.0,59062.0,0.13542]
[1724171480918,0.3608,59063.0,59062.0,3.90542]
[1724171481723,0.3608,59063.0,59062.0,3.83771]
[1724171481919,0.3628,59063.0,59062.0,3.83871]
[1724171482515,0.3678,59063.0,59062.0,3.83971]
[1724171483517,0.3678,59063.0,59062.0,3.90699329]
[1724171483718,0.3678,59063.0,59062.0,3.83971]
[1724171485019,0.435509,59063.0,59062.0,3.83971]
[1724171485213,0.595509,59063.0,59062.0,3.83971]
[1724171485419,0.595509,59063.0,59062.0,0.06971]
[1724171485816,0.595509,59063.0,59062.0,0.002]
[1724171486022,0.59830367,59063.0,59062.0,0.002]
[1724171486419,0.63975145,59063.0,59062.0,0.002]
[1724171487426,0.63975145,59063.0,59046.0,0.067727]
[1724171487427,0.067719,59055.0,59046.0,0.067727]
[1724171487622,0.3608,59049.0,59047.0,0.01058926]
[1724171487931,0.3608,59049.0,59048.0,3.77]
[1724171488231,0.36359517,59049.0,59048.0,3.77]
[1724171488431,0.36359517,59049.0,59048.0,3.837726]
[1724171489532,0.36359517,59049.0,59048.0,3.838726]
[1724171489731,0.36359515,59049.0,59048.0,3.838726]
[1724171489932,0.36359515,59049.0,59048.0,3.839726]
[1724171490120,0.4818236,59049.0,59048.0,3.839726]
[1724171490634,0.36359515,59049.0,59048.0,3.839726]
[1724171490826,0.00279515,59049.0,59048.0,3.839726]
[1724171491026,0.00279515,59049.0,59048.0,3.907452]
[1724171491825,0.1181957,59051.0,59050.0,0.067723]
[1724171492030,0.1181957,59052.0,59048.0,3.839726]
[1724171492335,0.1181957,59051.0,59048.0,3.839726]
[1724171492529,0.11823139,59050.0,59049.0,0.067725]
[1724171492728,0.3608,59050.0,59049.0,0.067725]
[1724171492925,0.36259506,59050.0,59049.0,0.067725]
[1724171494533,0.36259506,59050.0,59049.0,0.069725]
[1724171495424,0.57031806,59050.0,59049.0,0.069725]
[1724171496129,0.43031806,59050.0,59049.0,0.069725]
[1724171497436,0.57031806,59050.0,59049.0,0.12017229]
[1724171497635,0.57031823,59050.0,59049.0,0.12017229]
[1724171499747,0.57031823,59050.0,59049.0,0.05244729]
[1724171499935,0.99884123,59050.0,59049.0,0.002]
[1724171500135,0.067728,59046.0,59045.0,0.1144303]
[1724171500343,0.07052323,59046.0,59045.0,0.1144303]
[1724171500532,0.07052323,59046.0,59045.0,3.837729]
[1724171501746,0.07052323,59046.0,59045.0,0.067729]
[1724171501942,0.067728,59046.0,59045.0,0.068729]
[1724171502239,0.72292,59050.0,59048.0,0.067725]
[1724171502441,0.7206,59050.0,59049.0,0.067725]
[1724171502632,0.067723,59051.0,59050.0,0.06772]
[1724171503030,0.3608,59053.0,59052.0,0.067721]
[1724171504038,0.42852,59053.0,59052.0,0.067721]
[1724171504233,0.01085564,59054.0,59053.0,0.06772]
[1724171505746,0.01285564,59054.0,59053.0,0.06772]
[1724171506047,0.08257464,59054.0,59053.0,0.06772]
[1724171506842,0.44337464,59054.0,59053.0,0.06772]
[1724171507048,0.067722,59051.0,59050.0,0.13500385]
[1724171507343,0.24051697,59051.0,59050.0,0.067722]
[1724171508255,0.34691697,59051.0,59050.0,0.068722]
[1724171508950,0.344122,59051.0,59050.0,0.069722]
[1724171509342,0.2764,59051.0,59050.0,0.069722]
[1724171511049,0.17279504,59051.0,59050.0,0.069722]
[1724171511240,0.00279504,59051.0,59050.0,0.069722]
[1724171511446,0.00279504,59051.0,59050.0,0.137445]
[1724171511946,0.37165564,59054.0,59053.0,0.06772]
[1724171513149,0.37365564,59054.0,59053.0,0.06772]
[1724171514148,0.01285564,59054.0,59053.0,0.06772]
[1724171514646,0.08057464,59054.0,59053.0,0.06772]
[1724171514846,0.08257464,59054.0,59053.0,0.06772]
[1724171515249,0.067725,59051.0,59050.0,0.067723]
[1724171515447,0.237725,59051.0,59050.0,0.067723]
[1724171516350,0.347325,59051.0,59050.0,0.067723]
[1724171516557,0.347325,59051.0,59050.0,0.13600485]
[1724171516745,0.347325,59051.0,59050.0,0.13700485]
[1724171519245,0.41505,59051.0,59050.0,0.06928185]
[1724171519445,0.347325,59051.0,59050.0,0.002]
[1724171519650,0.464522,59051.0,59050.0,0.002]
[1724171521859,0.464522,59051.0,59050.0,0.06928185]
[1724171522358,0.464522,59051.0,59050.0,0.13700485]
[1724171523554,0.464522,59051.0,59050.0,0.069723]
[1724171524347,0.17,59051.0,59050.0,0.069723]
[1724171524559,0.17,59051.0,59050.0,0.13705089]
[1724171525056,0.17,59051.0,59050.0,0.137446]
[1724171526254,0.37085564,59054.0,59053.0,0.13544]
[1724171526255,0.01085564,59054.0,59053.0,0.13544]
[1724171527948,0.01285564,59054.0,59053.0,0.13544]
[1724171528553,0.01285564,59054.0,59053.0,0.06772]
[1724171528857,0.01485564,59054.0,59053.0,0.06772]
[1724171529255,0.01765043,59054.0,59053.0,0.06772]
[1724171530057,0.15765043,59054.0,59053.0,0.06772]
[1724171530355,0.15485564,59054.0,59053.0,0.06772]
[1724171530960,0.15485564,59054.0,59053.0,0.1348942]
[1724171531166,0.22257464,59054.0,59053.0,0.1348942]
[1724171531362,0.22257464,59054.0,59053.0,0.06772]
[1724171532771,0.067723,59051.0,59050.0,0.067723]
[1724171533059,0.227723,59051.0,59050.0,0.067723]
[1724171533567,0.227723,59051.0,59050.0,0.13496282]
[1724171534364,0.227723,59051.0,59050.0,0.067723]
[1724171534764,0.227723,59051.0,59050.0,0.068723]
[1724171535358,0.227723,59051.0,59050.0,0.069723]
[1724171536359,0.01085564,59054.0,59053.0,0.06772]
[1724171536565,0.17085564,59054.0,59053.0,0.06772]
[1724171537858,0.17285564,59054.0,59053.0,0.06772]
[1724171538565,0.24257464,59054.0,59053.0,0.06772]
[1724171538759,0.24257464,59054.0,59053.0,0.13499624]
[1724171540062,0.17485564,59054.0,59053.0,0.13499624]
[1724171540762,0.24257464,59054.0,59053.0,0.13499624]
[1724171541669,0.08257464,59054.0,59053.0,0.06772]
[1724171541865,0.01485564,59054.0,59053.0,0.06772]
[1724171542270,0.01485564,59054.0,59053.0,0.13544]
[1724171544466,0.01485564,59054.0,59053.0,0.06772]
[1724171544763,0.08257464,59054.0,59053.0,0.06772]
[1724171544964,0.23257464,59054.0,59053.0,0.06772]
[1724171548170,0.16485564,59054.0,59049.0,0.08410574]
[1724171548373,0.067726,59048.0,59047.0,0.067727]
[1724171548579,0.207726,59048.0,59047.0,0.067727]
[1724171548767,0.207726,59048.0,59047.0,0.28083422]
[1724171548962,0.207726,59048.0,59047.0,0.28083266]
[1724171549163,0.14,59048.0,59047.0,0.067727]
[1724171549368,0.14279498,59048.0,59047.0,0.067727]
[1724171549564,0.14279498,59048.0,59047.0,0.28182626]
[1724171549875,0.14279498,59048.0,59047.0,0.19772052]
[1724171550571,0.14179498,59048.0,59047.0,0.19772052]
[1724171551076,0.14179498,59048.0,59047.0,0.26544752]
[1724171551272,0.14179498,59048.0,59047.0,0.26644752]
[1724171551273,0.139,59048.0,59047.0,0.26644752]
[1724171551480,0.14179497,59048.0,59047.0,0.26644752]
[1724171551775,0.00279497,59048.0,59047.0,0.26644752]
[1724171552471,0.00025401,59054.0,59053.0,0.06772]
[1724171553070,0.00025401,59054.0,59053.0,0.42852]
[1724171553272,0.00025401,59054.0,59053.0,0.51256371]
[1724171553573,0.0105237,59054.0,59053.0,0.51256371]
[1724171553772,0.00225401,59054.0,59053.0,0.51256371]
[1724171554369,0.00225401,59054.0,59053.0,0.42852]
[1724171554874,0.06997301,59054.0,59053.0,0.06772]
[1724171555071,0.22197301,59054.0,59053.0,0.06772]
[1724171555469,0.23227231,59054.0,59053.0,0.06772]
[1724171561389,0.08227231,59054.0,59053.0,0.06772]
[1724171562981,0.01455331,59054.0,59053.0,0.06772]
[1724171565085,0.01455331,59054.0,59053.0,0.13498216]
[1724171567978,0.16455331,59054.0,59053.0,0.13498216]
[1724171568375,0.23227231,59054.0,59053.0,0.13498216]
[1724171568683,0.23227231,59054.0,59053.0,0.06772]
[1724171571081,0.16455331,59054.0,59053.0,0.06772]
[1724171571483,0.23227231,59054.0,59053.0,0.06772]
[1724171571681,0.23227231,59054.0,59050.0,0.06728603]
[1724171571682,0.67255331,59054.0,59050.0,0.06728603]
[1724171571881,0.067729,59045.0,59043.0,0.06754004]
[1724171572087,0.6922,59044.0,59043.0,0.00025401]
[1724171572286,0.8322,59044.0,59043.0,0.00025401]
[1724171572989,0.8312,59044.0,59043.0,0.00025401]
[1724171573288,0.89893,59044.0,59043.0,0.00125401]
[1724171573678,0.79282574,59044.0,59043.0,0.00225401]
[1724171574390,0.86055573,59044.0,59043.0,0.00225401]
[1724171574577,1.36863573,59044.0,59043.0,0.00225401]
[1724171574778,1.83636573,59044.0,59043.0,0.00225401]
[1724171575576,0.067743,59033.0,59032.0,3.77]
[1724171575781,0.59133873,59033.0,59032.0,3.77]
[1724171576280,0.067748,59029.0,59027.0,0.067749]
[1724171576591,0.22929573,59028.0,59027.0,0.067749]
[1724171576781,0.11929573,59028.0,59027.0,0.067749]
[1724171576981,0.11929573,59028.0,59022.0,0.06754004]
[1724171576982,0.64009573,59028.0,59022.0,0.06754004]
[1724171577181,0.64009573,59028.0,59022.0,0.00025401]
[1724171577182,0.067754,59024.0,59022.0,0.00025401]
[1724171577478,0.00279573,59023.0,59022.0,0.00025401]
[1724171577787,0.07054973,59023.0,59022.0,0.00025401]
[1724171578291,0.07054973,59023.0,59022.0,0.00125401]
[1724171578292,1.55738373,59023.0,59022.0,0.00125401]
[1724171578785,0.067763,59016.0,59000.0,0.14519995]
[1724171578978,0.067777,59004.0,58999.0,0.06728603]
[1724171579184,0.3608,59002.0,58998.0,0.067782]
[1724171579381,0.3608,59002.0,58983.0,0.4286]
[1724171579382,0.067792,58991.0,58987.0,0.06728603]
[1724171579693,0.3608,58999.0,58986.0,0.067796]
[1724171579694,0.00294027,58990.0,58986.0,0.067796]
[1724171579880,0.00014454,58990.0,58989.0,0.067793]
[1724171580082,0.00275773,58990.0,58989.0,0.067793]
[1724171580282,0.00275773,58990.0,58987.0,0.3608]
[1724171580283,0.00279779,58994.0,58993.0,0.067789]
[1724171581188,0.37048697,58999.0,58993.0,0.067789]
[1724171581490,0.00279762,58998.0,58993.0,0.067789]
[1724171581688,0.00279762,58997.0,58993.0,0.067789]
[1724171581886,0.37048697,58999.0,58993.0,0.067789]
[1724171581887,0.00279762,58996.0,58993.0,0.067789]
[1724171582087,0.00279762,58995.0,58994.0,0.067787]
[1724171582301,0.37048697,58999.0,58994.0,0.067787]
[1724171583681,0.37048697,58999.0,58994.0,0.069787]
[1724171583887,0.43826997,58999.0,58994.0,0.069787]
[1724171584088,0.067783,58998.0,58994.0,0.069787]
[1724171584792,0.067787,58995.0,58994.0,0.002]
[1724171585790,0.067787,58995.0,58994.0,0.001]
[1724171586092,0.067787,58995.0,58994.0,0.002]
[1724171587089,0.067787,58995.0,58994.0,0.001]
[1724171587285,0.43826897,58999.0,58996.0,0.067785]
[1724171587491,0.60826897,58999.0,58997.0,0.067784]
[1724171588193,0.60826897,58999.0,58998.0,0.067783]
[1724171588388,0.01043275,58999.0,58998.0,0.067783]
[1724171588785,0.01043275,58999.0,58998.0,3.837783]
[1724171589384,0.18043275,58999.0,58998.0,3.837783]
[1724171589590,0.18043275,58999.0,58998.0,3.838783]
[1724171589800,0.24821475,58999.0,58998.0,3.839783]
[1724171589984,0.24821475,58999.0,58998.0,3.772]
[1724171590492,0.60901475,58999.0,58998.0,3.772]
[1724171590682,0.60901475,58999.0,58998.0,0.002]
[1724171591193,0.60901475,58999.0,58998.0,3.772]
[1724171591790,0.24821475,58999.0,58998.0,3.772]
[1724171591992,0.18043275,58999.0,58998.0,3.839783]
[1724171594589,0.12109294,58999.0,58998.0,3.839783]
[1724171594985,0.3608,59005.0,59004.0,0.067776]
[1724171595295,0.578575,59005.0,59004.0,0.067776]
[1724171595489,0.5108,59005.0,59004.0,0.067776]
[1724171595690,0.3608,59005.0,59004.0,0.067776]
[1724171596196,0.3688,59005.0,59004.0,0.067776]
[1724171598301,0.135562,59000.0,58999.0,0.00025422]
[1724171598494,0.237781,59000.0,58999.0,0.06803622]
[1724171599905,0.237781,59000.0,58999.0,0.07003622]
[1724171600099,0.237781,59000.0,58999.0,3.84003622]
[1724171601401,0.067781,59000.0,58999.0,3.84003622]
[1724171601602,0.217781,59000.0,58999.0,3.84003622]
[1724171602506,0.22832062,59000.0,58999.0,3.84003622]
[1724171603698,0.16053962,59000.0,58999.0,3.84003622]
[1724171604303,0.15,59000.0,58999.0,4.33590425]
[1724171604504,0.428575,59005.0,58999.0,4.33590425]
[1724171604505,0.3608,59005.0,59004.0,0.067776]
[1724171604699,0.5008,59005.0,59004.0,0.067776]
[1724171605196,0.57873426,59005.0,59004.0,0.067776]
[1724171605405,0.067777,59003.0,59002.0,0.06704107]
[1724171605602,0.217777,59003.0,59002.0,0.13484292]
[1724171606106,0.217777,59003.0,59002.0,0.067778]
[1724171606304,0.067781,59000.0,58999.0,3.92160573]
[1724171606495,0.598581,59000.0,58999.0,4.05071282]
[1724171606700,0.598581,59000.0,58999.0,3.83803522]
[1724171606906,0.598581,59000.0,58999.0,3.77025422]
[1724171608211,1.027162,59000.0,58999.0,0.00125422]
[1724171608806,1.027162,59000.0,58999.0,0.00225422]
[1724171610508,1.02995993,59000.0,58999.0,0.00225422]
[1724171610703,1.027162,59000.0,58999.0,0.06946136]
[1724171610903,1.027162,59000.0,58999.0,0.00225422]
[1724171611308,1.02995993,59000.0,58999.0,0.00225422]
[1724171611511,1.027162,59000.0,58999.0,0.06946136]
[1724171611813,1.02995986,59000.0,58999.0,0.06946136]
[1724171612207,1.02995986,59000.0,58999.0,0.00225422]
[1724171612412,1.02995987,59000.0,58999.0,0.00225422]
[1724171616418,1.02995986,59000.0,58999.0,0.00225422]
[1724171617016,0.135568,58997.0,58996.0,0.06720714]
[1724171617312,0.135614,58977.0,58976.0,0.06721333]
[1724171617517,0.067811,58974.0,58971.0,0.06714271]
[1724171617710,0.067816,58969.0,58967.0,0.06714271]
[1724171617911,0.00279786,58968.0,58965.0,0.13496371]
[1724171618105,0.3598,58966.0,58965.0,0.13496371]
[1724171618302,0.36259786,58966.0,58965.0,0.13496371]
[1724171618507,0.36259786,58966.0,58965.0,0.067821]
[1724171619110,0.36159786,58966.0,58965.0,0.067821]
[1724171619316,0.00279786,58966.0,58965.0,0.067821]
[1724171619616,0.067816,58969.0,58967.0,0.001]
[1724171619829,0.00279914,58968.0,58967.0,0.001]
[1724171620015,1.12477422,58972.0,58971.0,0.067814]
[1724171620016,0.00257422,58972.0,58971.0,0.067814]
[1724171620208,0.00305299,58972.0,58971.0,0.535628]
[1724171620413,0.3608,58985.0,58977.0,0.067807]
[1724171620607,0.067796,58987.0,58981.0,0.067803]
[1724171620608,0.01009322,58982.0,58981.0,0.067803]
[1724171620813,0.00279855,58982.0,58981.0,0.428603]
[1724171622115,0.00279855,58982.0,58981.0,0.47880742]
[1724171622317,0.01075331,58987.0,58986.0,0.067797]
[1724171622517,0.01355146,58987.0,58986.0,0.428597]
[1724171623316,0.00305237,58987.0,58986.0,0.552697]
[1724171623523,0.00305237,58987.0,58986.0,0.6029]
[1724171623726,0.01005237,58987.0,58986.0,0.6039]
[1724171624216,0.01005237,58987.0,58986.0,0.553697]
[1724171624414,0.01005237,58987.0,58986.0,0.6039]
[1724171624610,0.01005237,58987.0,58986.0,0.553697]
[1724171624812,0.01005237,58987.0,58986.0,0.56412684]
[1724171625024,0.01405237,58987.0,58986.0,0.56412684]
[1724171625224,0.04980253,58989.0,58987.0,0.067796]
[1724171625717,0.04980253,58989.0,58988.0,0.067795]
[1724171626313,0.06779,58992.0,58991.0,0.067789]
[1724171626616,1e-08,58994.0,58993.0,0.067789]
[1724171626816,1e-08,58994.0,58993.0,4.237789]
[1724171627021,0.067772,59008.0,58994.0,0.067788]
[1724171627331,0.067772,59008.0,59007.0,0.3608]
[1724171627528,0.067772,59008.0,59007.0,0.428573]
[1724171629417,0.01043422,59012.0,59008.0,0.067771]
[1724171629626,0.68624001,59015.0,59008.0,0.067771]
[1724171629826,0.6838,59015.0,59008.0,0.067771]
[1724171630224,0.01058087,59015.0,59013.0,0.428566]
[1724171630430,0.4394,59022.0,59013.0,0.428566]
[1724171630621,0.067764,59015.0,59013.0,0.428566]
[1724171630816,0.067765,59014.0,59013.0,0.3608]
[1724171632033,0.067765,59014.0,59013.0,4.1308]
[1724171632422,0.070765,59014.0,59013.0,4.1328]
[1724171632822,0.070765,59014.0,59013.0,4.200566]
[1724171633026,0.070765,59014.0,59013.0,3.839766]
[1724171634130,0.070765,59014.0,59013.0,4.200566]
[1724171637231,0.07356184,59014.0,59013.0,4.200566]
[1724171637733,0.21356184,59014.0,59013.0,4.200566]
[1724171639435,0.00579684,59014.0,59013.0,4.200566]
[1724171639832,0.00579678,59014.0,59013.0,4.776692]
[1724171640239,0.00579677,59014.0,59013.0,4.776692]
[1724171640536,0.00579677,59014.0,59013.0,4.268332]
[1724171640942,0.00579677,59014.0,59013.0,4.200566]
[1724171641239,0.21356177,59014.0,59013.0,0.3628]
[1724171641430,0.067777,59005.0,59002.0,0.36105422]
[1724171641632,0.507177,59003.0,59002.0,0.06803222]
[1724171641832,0.64997377,59003.0,59002.0,0.06803222]
[1724171642039,0.64997377,59003.0,59002.0,0.00025422]
[1724171642234,0.714954,59003.0,59002.0,0.00025422]
[1724171642454,0.64997441,59003.0,59002.0,0.00025422]
[1724171643150,0.65197441,59003.0,59002.0,3.77025422]
[1724171643449,0.65197441,59003.0,59002.0,3.83803222]
[1724171643655,0.6621745,59003.0,59002.0,3.83803222]
[1724171643952,0.0149975,59003.0,59002.0,3.83803222]
[1724171644748,0.0149975,59003.0,59002.0,3.83903222]
[1724171645250,0.0169975,59003.0,59002.0,3.84003222]
[1724171645849,0.0159975,59003.0,59002.0,3.83903222]
[1724171646244,0.01599744,59003.0,59002.0,3.83803222]
[1724171649152,0.00579735,59003.0,59002.0,3.90581022]
[1724171649555,0.003,59003.0,59002.0,3.90581022]
[1724171650161,0.00579703,59003.0,59002.0,3.90581022]
[1724171650459,0.067777,59004.0,59003.0,0.067776]
[1724171650857,0.07057413,59004.0,59003.0,0.067776]
[1724171651663,0.00279713,59004.0,59003.0,0.067776]
[1724171652657,0.00579713,59004.0,59003.0,0.067776]
[1724171653053,0.00579718,59004.0,59003.0,0.067776]
[1724171653453,0.00579718,59004.0,59003.0,0.11793797]
[1724171653658,0.01592111,59004.0,59003.0,0.11793797]
[1724171653864,0.00579718,59004.0,59003.0,0.11793797]
[1724171654559,0.00579718,59004.0,59003.0,0.067776]
[1724171655267,0.07357318,59004.0,59003.0,0.067776]
[1724171656653,0.067777,59003.0,59002.0,3.82062119]
[1724171656857,0.067777,59003.0,59002.0,3.77025422]
[1724171656858,0.41825118,59003.0,59002.0,3.77025422]
[1724171658263,0.41825156,59003.0,59002.0,3.77025422]
[1724171658459,0.42125156,59003.0,59002.0,3.77025422]
[1724171659362,0.42125156,59003.0,59002.0,3.77125422]
[1724171659962,0.42125156,59003.0,59002.0,3.77225422]
[1724171662473,0.36312,59004.0,59003.0,0.067777]
[1724171662774,0.00279745,59004.0,59003.0,0.067777]
[1724171663366,0.00279745,59004.0,59003.0,1.043994]
[1724171663569,0.3608,59010.0,59009.0,0.06777]
[1724171663874,0.01054773,59011.0,59010.0,0.067769]
[1724171664079,0.06776,59018.0,59010.0,0.05034965]
[1724171664378,0.06776,59018.0,59016.0,0.067762]
[1724171664769,0.067761,59017.0,59016.0,0.067762]
[1724171665273,0.37366823,59019.0,59018.0,0.06776]
[1724171665475,0.3608,59019.0,59018.0,0.06776]
[1724171665673,0.3608,59019.0,59018.0,0.11810965]
[1724171665868,0.3608,59019.0,59018.0,0.06776]
[1724171666566,0.4762,59030.0,59018.0,1.33788]
[1724171666766,0.4762,59030.0,59028.0,0.067748]
[1724171667078,0.4762,59030.0,59027.0,0.05024991]
[1724171667278,0.3608,59030.0,59025.0,0.05024991]
[1724171667464,0.37111437,59030.0,59029.0,0.067747]
[1724171668066,0.42683336,59047.0,59029.0,0.067747]
[1724171668067,0.06752517,59045.0,59029.0,5.17378688]
[1724171668377,0.68868001,59047.0,59040.0,0.067735]
[1724171668586,0.6862,59047.0,59040.0,0.067735]
[1724171668769,0.6862,59047.0,59042.0,0.067732]
[1724171668971,0.37107684,59047.0,59042.0,0.067732]
[1724171669778,0.37207684,59047.0,59042.0,0.067732]
[1724171669979,0.3515,59045.0,59040.0,0.001]
[1724171670176,0.3608,59042.0,59040.0,0.001]
[1724171670378,0.180834,59041.0,59040.0,0.001]
[1724171670670,0.340834,59041.0,59040.0,0.001]
[1724171671380,0.2721,59041.0,59039.0,0.00025422]
[1724171671877,0.1131,59041.0,59040.0,0.001]
[1724171672277,0.180834,59041.0,59040.0,0.001]
[1724171672678,0.067735,59040.0,59039.0,0.00225422]
[1724171673078,0.227735,59040.0,59039.0,0.00225422]
[1724171673477,0.226735,59040.0,59039.0,0.00125422]
[1724171673780,1.134855,59040.0,59039.0,0.00125422]
[1724171673971,1.134855,59040.0,59029.0,3.77]
[1724171673972,0.067745,59032.0,59029.0,3.77]
[1724171674173,0.067746,59030.0,59015.0,0.428563]
[1724171674390,0.3608,59027.0,59026.0,0.067751]
[1724171674679,0.57855,59027.0,59019.0,0.067758]
[1724171674880,0.57855,59027.0,59015.0,0.3608]
[1724171674881,0.3515,59020.0,59017.0,0.067761]
[1724171675072,0.2365,59019.0,59017.0,0.067761]
[1724171675272,0.304259,59019.0,59018.0,3.77]
[1724171675482,0.067763,59016.0,59013.0,0.06802022]
[1724171675679,0.00279669,59015.0,59013.0,0.06802022]
[1724171675980,0.418265,59014.0,59013.0,0.00025422]
[1724171676186,0.56106169,59014.0,59013.0,0.00025422]
[1724171676579,0.56206169,59014.0,59013.0,0.00025422]
[1724171677178,0.56406169,59014.0,59013.0,0.00125422]
[1724171677380,0.56406213,59014.0,59013.0,0.00125422]
[1724171678182,0.57006213,59014.0,59013.0,0.00225422]
[1724171678580,0.21856213,59014.0,59013.0,0.00225422]
[1724171678782,1.20368713,59014.0,59013.0,0.00225422]
[1724171678985,1.20368713,59014.0,59005.0,0.067775]
[1724171678986,0.067773,59007.0,59005.0,0.067775]
[1724171679184,0.36259713,59006.0,59005.0,0.067775]
[1724171679384,0.36159713,59006.0,59005.0,0.067775]
[1724171680281,0.51159713,59006.0,59005.0,0.067775]
[1724171680487,0.51559713,59006.0,59005.0,0.067775]
[1724171680987,0.52574145,59006.0,59005.0,0.067775]
[1724171681183,0.52574164,59006.0,59005.0,0.067775]
[1724171681583,0.59351564,59006.0,59005.0,0.067775]
[1724171681988,0.067775,59005.0,59003.0,3.77]
[1724171682184,0.07057332,59004.0,59003.0,3.77]